[Event "Titled Tuesday Blitz May 10 Early 2022"]
[White "Andreikin, Dmitry"]
[Black "Clarke, Brandon G I"]
[WhiteFideId "4158814"]
[BlackFideId "400319"]
[WhiteElo "2736"]
[BlackElo "2414"]
[Result "1-0"]
[Round "07"]
[TimeControl "180+1"]
[Date "2022.05.10"]
[WhiteClock "0:00:17"]
[BlackClock "0:00:05"]

1. d4 {[%clk 0:03:00]}  Nf6 {[%clk 0:02:58]} 2. c4 {[%clk 0:03:01]}  g6 {[%clk 0:02:58]} 3. Nc3 {[%clk 0:03:00]}  d5 {[%clk 0:02:58]} 4. cxd5 {[%clk 0:03:00]}  Nxd5 {[%clk 0:02:59]} 5. e4 {[%clk 0:03:01]}  Nxc3 {[%clk 0:02:59]} 6. bxc3 {[%clk 0:03:02]}  Bg7 {[%clk 0:03:00]} 7. Nf3 {[%clk 0:03:02]}  c5 {[%clk 0:03:01]} 8. Bb5+ {[%clk 0:03:02]}  Nc6 {[%clk 0:03:01]} 9. O-O {[%clk 0:03:01]}  O-O {[%clk 0:03:00]} 10. Bxc6 {[%clk 0:03:01]}  bxc6 {[%clk 0:03:01]} 11. Qc2 {[%clk 0:03:02]}  cxd4 {[%clk 0:03:01]} 12. cxd4 {[%clk 0:03:02]}  Bg4 {[%clk 0:03:02]} 13. Ne5 {[%clk 0:03:01]}  Qxd4 {[%clk 0:03:02]} 14. Bb2 {[%clk 0:03:01]}  Qb6 {[%clk 0:03:03]} 15. Rab1 {[%clk 0:03:02]}  Bxe5 {[%clk 0:03:00]} 16. Bxe5 {[%clk 0:03:03]}  Qa5 {[%clk 0:03:01]} 17. Bc3 {[%clk 0:03:03]}  Qc5 {[%clk 0:03:01]} 18. Rfc1 {[%clk 0:03:02]}  Rfd8 {[%clk 0:02:53]} 19. Qb2 {[%clk 0:02:54]}  Qd6 {[%clk 0:02:29]} 20. h3 {[%clk 0:02:20]}  Rab8 {[%clk 0:02:21]} 21. Qa1 {[%clk 0:02:18]}  Rxb1 {[%clk 0:02:21]} 22. Rxb1 {[%clk 0:02:18]}  Be6 {[%clk 0:02:19]} 23. a3 {[%clk 0:02:04]}  Qd3 {[%clk 0:02:14]} 24. Re1 {[%clk 0:01:59]}  f6 {[%clk 0:02:13]} 25. Bb4 {[%clk 0:01:58]}  Kf7 {[%clk 0:02:13]} 26. Qc1 {[%clk 0:01:57]}  g5 {[%clk 0:02:02]} 27. e5 {[%clk 0:01:52]}  Qc4 {[%clk 0:01:58]} 28. Qe3 {[%clk 0:01:47]}  a5 {[%clk 0:01:51]} 29. Bxa5 {[%clk 0:01:29]}  Rd3 {[%clk 0:01:51]} 30. Qa7 {[%clk 0:01:23]}  Rd7 {[%clk 0:01:20]} 31. Qa8 {[%clk 0:01:13]}  Qa4 {[%clk 0:00:51]} 32. exf6 {[%clk 0:01:12]}  exf6 {[%clk 0:00:51]} 33. Qa6 {[%clk 0:00:44]}  Rd1 {[%clk 0:00:42]} 34. Qb7+ {[%clk 0:00:43]}  Kg6 {[%clk 0:00:40]} 35. Qe7 {[%clk 0:00:34]}  Rxe1+ {[%clk 0:00:34]} 36. Bxe1 {[%clk 0:00:34]}  Qe4 {[%clk 0:00:32]} 37. Bc3 {[%clk 0:00:34]}  Qb1+ {[%clk 0:00:24]} 38. Kh2 {[%clk 0:00:33]}  Qf5 {[%clk 0:00:25]} 39. Kg1 {[%clk 0:00:22]}  Qb1+ {[%clk 0:00:24]} 40. Kh2 {[%clk 0:00:22]}  Qf5 {[%clk 0:00:25]} 41. Qd6 {[%clk 0:00:15]}  Qf4+ {[%clk 0:00:24]} 42. Qxf4 {[%clk 0:00:15]}  gxf4 {[%clk 0:00:25]} 43. a4 {[%clk 0:00:16]}  Bc4 {[%clk 0:00:25]} 44. f3 {[%clk 0:00:15]}  Kf5 {[%clk 0:00:26]} 45. Kg1 {[%clk 0:00:15]}  h5 {[%clk 0:00:20]} 46. h4 {[%clk 0:00:15]}  Ke6 {[%clk 0:00:20]} 47. Kf2 {[%clk 0:00:15]}  Kf5 {[%clk 0:00:19]} 48. a5 {[%clk 0:00:15]}  Ba6 {[%clk 0:00:19]} 49. Ke1 {[%clk 0:00:16]}  c5 {[%clk 0:00:19]} 50. Bb2 {[%clk 0:00:15]}  Ke6 {[%clk 0:00:19]} 51. Bc1 {[%clk 0:00:16]}  Ke5 {[%clk 0:00:20]} 52. Ba3 {[%clk 0:00:16]}  Kd5 {[%clk 0:00:19]} 53. Bb2 {[%clk 0:00:17]}  f5 {[%clk 0:00:19]} 54. Bc1 {[%clk 0:00:16]}  Ke5 {[%clk 0:00:19]} 55. Bd2 {[%clk 0:00:17]}  Bb5 {[%clk 0:00:16]} 56. Kf2 {[%clk 0:00:16]}  Ba6 {[%clk 0:00:16]} 57. Ke1 {[%clk 0:00:16]}  Bb5 {[%clk 0:00:16]} 58. Bc3+ {[%clk 0:00:16]}  Kd5 {[%clk 0:00:17]} 59. Bf6 {[%clk 0:00:17]}  Ke6 {[%clk 0:00:16]} 60. Bg7 {[%clk 0:00:17]}  Kd5 {[%clk 0:00:16]} 61. Bf8 {[%clk 0:00:16]}  Ba6 {[%clk 0:00:16]} 62. Be7 {[%clk 0:00:17]}  Bb5 {[%clk 0:00:16]} 63. Bg5 {[%clk 0:00:17]}  Ke5 {[%clk 0:00:17]} 64. Bd8 {[%clk 0:00:18]}  Kd5 {[%clk 0:00:17]} 65. Bc7 {[%clk 0:00:18]}  Kc4 {[%clk 0:00:15]} 66. Bxf4 {[%clk 0:00:16]}  Kb4 {[%clk 0:00:15]} 67. Bd2+ {[%clk 0:00:16]}  Kc4 {[%clk 0:00:13]} 68. Kf2 {[%clk 0:00:16]}  Kd3 {[%clk 0:00:14]} 69. Be1 {[%clk 0:00:16]}  c4 {[%clk 0:00:14]} 70. g4 {[%clk 0:00:16]}  fxg4 {[%clk 0:00:14]} 71. fxg4 {[%clk 0:00:17]}  hxg4 {[%clk 0:00:15]} 72. h5 {[%clk 0:00:17]}  c3 {[%clk 0:00:06]} 73. Bxc3 {[%clk 0:00:17]}  Kxc3 {[%clk 0:00:06]} 74. h6 {[%clk 0:00:17]}  Kb4 {[%clk 0:00:05]} 75. h7 {[%clk 0:00:17]} 1-0


[Site "https://www.chess.com"]

[Event "Titled Tuesday Blitz May 10 Early 2022"]
[White "Bachmann, Axel"]
[Black "Ivanisevic, Ivan"]
[WhiteFideId "3700488"]
[BlackFideId "912417"]
[WhiteElo "2587"]
[BlackElo "2495"]
[Result "1-0"]
[Round "07"]
[TimeControl "180+1"]
[Date "2022.05.11"]
[WhiteClock "0:00:06"]
[BlackClock "0:00:12"]

1. e4 {[%clk 0:02:59]}  c5 {[%clk 0:02:55]} 2. Nf3 {[%clk 0:02:56]}  e6 {[%clk 0:02:55]} 3. d4 {[%clk 0:02:54]}  cxd4 {[%clk 0:02:55]} 4. Nxd4 {[%clk 0:02:55]}  Nc6 {[%clk 0:02:56]} 5. Nc3 {[%clk 0:02:53]}  Qc7 {[%clk 0:02:56]} 6. f4 {[%clk 0:02:53]}  a6 {[%clk 0:02:55]} 7. Be3 {[%clk 0:02:50]}  b5 {[%clk 0:02:55]} 8. Nxc6 {[%clk 0:02:50]}  Qxc6 {[%clk 0:02:54]} 9. Bd3 {[%clk 0:02:49]}  Ba3 {[%clk 0:02:34]} 10. bxa3 {[%clk 0:02:40]}  Qxc3+ {[%clk 0:02:33]} 11. Kf2 {[%clk 0:02:41]}  Bb7 {[%clk 0:02:32]} 12. Re1 {[%clk 0:02:08]}  Nf6 {[%clk 0:02:31]} 13. Kg1 {[%clk 0:02:09]}  Nxe4 {[%clk 0:02:13]} 14. a4 {[%clk 0:02:01]}  Qc6 {[%clk 0:01:54]} 15. axb5 {[%clk 0:01:59]}  axb5 {[%clk 0:01:55]} 16. Qg4 {[%clk 0:01:59]}  Nf6 {[%clk 0:01:34]} 17. Qg3 {[%clk 0:01:58]}  O-O {[%clk 0:01:31]} 18. Bd4 {[%clk 0:01:50]}  Nh5 {[%clk 0:01:31]} 19. Qh3 {[%clk 0:01:44]}  f5 {[%clk 0:01:30]} 20. Be4 {[%clk 0:01:15]}  Nxf4 {[%clk 0:01:19]} 21. Qg3 {[%clk 0:01:03]}  Nh5 {[%clk 0:01:16]} 22. Bxc6 {[%clk 0:01:03]}  Nxg3 {[%clk 0:01:15]} 23. Bxb7 {[%clk 0:01:03]}  Rab8 {[%clk 0:01:14]} 24. Bf3 {[%clk 0:00:59]}  Ne4 {[%clk 0:01:09]} 25. Bxe4 {[%clk 0:00:59]}  fxe4 {[%clk 0:01:10]} 26. Rxe4 {[%clk 0:01:00]}  Ra8 {[%clk 0:01:07]} 27. a3 {[%clk 0:00:46]}  Ra4 {[%clk 0:01:03]} 28. c3 {[%clk 0:00:46]}  Rf5 {[%clk 0:00:58]} 29. g4 {[%clk 0:00:38]}  Rd5 {[%clk 0:00:57]} 30. Kg2 {[%clk 0:00:31]}  h6 {[%clk 0:00:57]} 31. Kf3 {[%clk 0:00:30]}  Kf7 {[%clk 0:00:55]} 32. Ke3 {[%clk 0:00:25]}  d6 {[%clk 0:00:50]} 33. Rf1+ {[%clk 0:00:25]}  Ke7 {[%clk 0:00:49]} 34. Bxg7 {[%clk 0:00:24]}  Rxa3 {[%clk 0:00:46]} 35. Rd4 {[%clk 0:00:15]}  Rxc3+ {[%clk 0:00:42]} 36. Kf2 {[%clk 0:00:10]}  Rxd4 {[%clk 0:00:28]} 37. Bxd4 {[%clk 0:00:11]}  Rc4 {[%clk 0:00:28]} 38. Be3 {[%clk 0:00:02]}  Rxg4 {[%clk 0:00:28]} 39. Bxh6 {[%clk 0:00:03]}  e5 {[%clk 0:00:28]} 40. h4 {[%clk 0:00:03]}  Ke6 {[%clk 0:00:27]} 41. Bg5 {[%clk 0:00:03]}  e4 {[%clk 0:00:25]} 42. Ke3 {[%clk 0:00:02]}  d5 {[%clk 0:00:24]} 43. Kd4 {[%clk 0:00:03]}  b4 {[%clk 0:00:23]} 44. Rf6+ {[%clk 0:00:03]}  Kd7 {[%clk 0:00:23]} 45. Kxd5 {[%clk 0:00:03]}  e3 {[%clk 0:00:22]} 46. Rf7+ {[%clk 0:00:04]}  Ke8 {[%clk 0:00:22]} 47. Re7+ {[%clk 0:00:04]}  Kf8 {[%clk 0:00:22]} 48. Rxe3 {[%clk 0:00:05]}  Kf7 {[%clk 0:00:22]} 49. Re4 {[%clk 0:00:05]}  Rxe4 {[%clk 0:00:19]} 50. Kxe4 {[%clk 0:00:06]}  Kg6 {[%clk 0:00:19]} 51. Kd3 {[%clk 0:00:06]}  Kh5 {[%clk 0:00:20]} 52. Kc4 {[%clk 0:00:06]}  Kg6 {[%clk 0:00:12]} 53. Kxb4 {[%clk 0:00:06]} 1-0


[Site "https://www.chess.com"]

[Event "Titled Tuesday Blitz May 10 Early 2022"]
[White "Bacrot, Etienne"]
[Black "Bok, Benjamin"]
[WhiteFideId "605506"]
[BlackFideId "1017063"]
[WhiteElo "2673"]
[BlackElo "2658"]
[Result "1/2-1/2"]
[Round "07"]
[TimeControl "180+1"]
[Date "2022.05.10"]
[WhiteClock "0:00:30"]
[BlackClock "0:00:13"]

1. e4 {[%clk 0:03:00]}  c5 {[%clk 0:03:00]} 2. Nf3 {[%clk 0:03:01]}  d6 {[%clk 0:03:00]} 3. Bb5+ {[%clk 0:03:01]}  Nd7 {[%clk 0:03:00]} 4. O-O {[%clk 0:03:00]}  a6 {[%clk 0:03:00]} 5. Bd3 {[%clk 0:03:00]}  Ngf6 {[%clk 0:03:00]} 6. Re1 {[%clk 0:03:01]}  e6 {[%clk 0:03:00]} 7. Bf1 {[%clk 0:03:01]}  b6 {[%clk 0:02:53]} 8. d4 {[%clk 0:02:52]}  cxd4 {[%clk 0:02:53]} 9. Qxd4 {[%clk 0:02:51]}  Bb7 {[%clk 0:02:51]} 10. c4 {[%clk 0:02:51]}  Be7 {[%clk 0:02:48]} 11. Nc3 {[%clk 0:02:50]}  O-O {[%clk 0:02:48]} 12. Bg5 {[%clk 0:02:47]}  Qc7 {[%clk 0:02:46]} 13. Rad1 {[%clk 0:02:46]}  Rfd8 {[%clk 0:02:45]} 14. Bh4 {[%clk 0:02:43]}  Ne5 {[%clk 0:02:08]} 15. Nd2 {[%clk 0:02:11]}  Ng6 {[%clk 0:02:03]} 16. Bg3 {[%clk 0:02:10]}  Nh5 {[%clk 0:02:03]} 17. Qe3 {[%clk 0:02:05]}  Nxg3 {[%clk 0:01:49]} 18. hxg3 {[%clk 0:02:06]}  Ne5 {[%clk 0:01:36]} 19. Rc1 {[%clk 0:02:04]}  Rac8 {[%clk 0:01:34]} 20. Be2 {[%clk 0:01:51]}  h6 {[%clk 0:01:33]} 21. Nf3 {[%clk 0:01:40]}  Bf6 {[%clk 0:01:12]} 22. b3 {[%clk 0:01:38]}  Qc5 {[%clk 0:01:09]} 23. Qd2 {[%clk 0:01:35]}  Ng4 {[%clk 0:01:06]} 24. Bf1 {[%clk 0:01:28]}  Qh5 {[%clk 0:00:49]} 25. Rc2 {[%clk 0:01:28]}  Qa5 {[%clk 0:00:37]} 26. Bd3 {[%clk 0:01:25]}  b5 {[%clk 0:00:35]} 27. Nd5 {[%clk 0:01:21]}  Qxd2 {[%clk 0:00:34]} 28. Nxf6+ {[%clk 0:01:20]}  Nxf6 {[%clk 0:00:35]} 29. Nxd2 {[%clk 0:01:20]}  bxc4 {[%clk 0:00:33]} 30. Rxc4 {[%clk 0:01:19]}  d5 {[%clk 0:00:32]} 31. Rxc8 {[%clk 0:01:15]}  Rxc8 {[%clk 0:00:31]} 32. exd5 {[%clk 0:01:15]}  Nxd5 {[%clk 0:00:31]} 33. Nc4 {[%clk 0:01:04]}  Nb4 {[%clk 0:00:31]} 34. Bb1 {[%clk 0:01:04]}  Bd5 {[%clk 0:00:28]} 35. Nb6 {[%clk 0:00:57]}  Rc6 {[%clk 0:00:21]} 36. Nxd5 {[%clk 0:00:56]}  Nxd5 {[%clk 0:00:22]} 37. Be4 {[%clk 0:00:55]}  Kf8 {[%clk 0:00:21]} 38. Bxd5 {[%clk 0:00:54]}  exd5 {[%clk 0:00:22]} 39. Rd1 {[%clk 0:00:54]}  Rc2 {[%clk 0:00:16]} 40. a4 {[%clk 0:00:50]}  Rb2 {[%clk 0:00:15]} 41. Rxd5 {[%clk 0:00:50]}  Rxb3 {[%clk 0:00:15]} 42. Rd6 {[%clk 0:00:50]}  a5 {[%clk 0:00:15]} 43. Rd5 {[%clk 0:00:49]}  Ra3 {[%clk 0:00:14]} 44. Rxa5 {[%clk 0:00:48]}  g6 {[%clk 0:00:14]} 45. g4 {[%clk 0:00:48]}  Kg7 {[%clk 0:00:14]} 46. g3 {[%clk 0:00:45]}  Rb3 {[%clk 0:00:13]} 47. Kg2 {[%clk 0:00:43]}  Rb4 {[%clk 0:00:13]} 48. Kf3 {[%clk 0:00:42]}  Rb3+ {[%clk 0:00:13]} 49. Kg2 {[%clk 0:00:43]}  Rb4 {[%clk 0:00:13]} 50. Kh3 {[%clk 0:00:41]}  Rb2 {[%clk 0:00:13]} 51. Kg2 {[%clk 0:00:30]}  Rb4 {[%clk 0:00:13]} 1/2-1/2


[Site "https://www.chess.com"]

[Event "Titled Tuesday Blitz May 10 Early 2022"]
[White "Barp, Alberto"]
[Black "Stribuk, Artiom"]
[WhiteFideId "872555"]
[BlackFideId "13515659"]
[WhiteElo "2229"]
[BlackElo "2259"]
[Result "1-0"]
[Round "07"]
[TimeControl "180+1"]
[Date "2022.05.10"]
[WhiteClock "0:00:02"]
[BlackClock "0:00:01"]

1. Nf3 {[%clk 0:02:58]}  Nf6 {[%clk 0:02:54]} 2. d4 {[%clk 0:02:56]}  g6 {[%clk 0:02:53]} 3. Bf4 {[%clk 0:02:55]}  Bg7 {[%clk 0:02:53]} 4. Nbd2 {[%clk 0:02:53]}  O-O {[%clk 0:02:50]} 5. h3 {[%clk 0:02:51]}  c5 {[%clk 0:02:18]} 6. e3 {[%clk 0:02:44]}  b6 {[%clk 0:02:15]} 7. Bd3 {[%clk 0:02:36]}  Bb7 {[%clk 0:02:15]} 8. O-O {[%clk 0:02:35]}  d6 {[%clk 0:02:14]} 9. c3 {[%clk 0:02:34]}  Nbd7 {[%clk 0:02:14]} 10. a4 {[%clk 0:02:32]}  a6 {[%clk 0:02:14]} 11. Qe2 {[%clk 0:02:30]}  Re8 {[%clk 0:02:09]} 12. Bh2 {[%clk 0:02:29]}  Qc8 {[%clk 0:02:04]} 13. Rfd1 {[%clk 0:02:27]}  Bc6 {[%clk 0:02:04]} 14. e4 {[%clk 0:02:23]}  e5 {[%clk 0:01:33]} 15. Nc4 {[%clk 0:02:18]}  Qc7 {[%clk 0:01:31]} 16. d5 {[%clk 0:01:59]}  Bb7 {[%clk 0:01:31]} 17. Ne3 {[%clk 0:01:59]}  Nh5 {[%clk 0:01:29]} 18. Qc2 {[%clk 0:01:53]}  Nf4 {[%clk 0:01:23]} 19. Bf1 {[%clk 0:01:53]}  Rf8 {[%clk 0:01:14]} 20. Rac1 {[%clk 0:01:48]}  h6 {[%clk 0:01:06]} 21. b4 {[%clk 0:01:44]}  Rfc8 {[%clk 0:01:02]} 22. b5 {[%clk 0:01:43]}  a5 {[%clk 0:00:59]} 23. Nd2 {[%clk 0:01:33]}  Rf8 {[%clk 0:00:58]} 24. Ndc4 {[%clk 0:01:31]}  Rae8 {[%clk 0:00:58]} 25. Qd2 {[%clk 0:01:15]}  Bc8 {[%clk 0:00:55]} 26. h4 {[%clk 0:01:07]}  Nf6 {[%clk 0:00:49]} 27. Qc2 {[%clk 0:01:05]}  h5 {[%clk 0:00:46]} 28. f3 {[%clk 0:01:01]}  Bh6 {[%clk 0:00:45]} 29. Bg3 {[%clk 0:01:01]}  Nh7 {[%clk 0:00:41]} 30. Bf2 {[%clk 0:00:50]}  Qd8 {[%clk 0:00:39]} 31. Kh2 {[%clk 0:00:45]}  f5 {[%clk 0:00:35]} 32. g3 {[%clk 0:00:41]}  fxe4 {[%clk 0:00:35]} 33. fxe4 {[%clk 0:00:37]}  g5 {[%clk 0:00:30]} 34. gxf4 {[%clk 0:00:27]}  exf4 {[%clk 0:00:27]} 35. e5 {[%clk 0:00:12]}  fxe3 {[%clk 0:00:13]} 36. Bxe3 {[%clk 0:00:10]}  Bf5 {[%clk 0:00:12]} 37. Bd3 {[%clk 0:00:09]}  Bxd3 {[%clk 0:00:07]} 38. Qxd3 {[%clk 0:00:10]}  Kh8 {[%clk 0:00:06]} 39. Nxd6 {[%clk 0:00:10]}  Rxe5 {[%clk 0:00:06]} 40. Nc4 {[%clk 0:00:10]}  Rxe3 {[%clk 0:00:04]} 41. Qxe3 {[%clk 0:00:09]}  Qc8 {[%clk 0:00:02]} 42. Qe5+ {[%clk 0:00:09]}  Bg7 {[%clk 0:00:03]} 43. Qe6 {[%clk 0:00:09]}  Qb8+ {[%clk 0:00:02]} 44. d6 {[%clk 0:00:09]}  gxh4 {[%clk 0:00:03]} 45. Kh1 {[%clk 0:00:08]}  Ng5 {[%clk 0:00:03]} 46. Qd5 {[%clk 0:00:08]}  Qd8 {[%clk 0:00:03]} 47. Rf1 {[%clk 0:00:08]}  Re8 {[%clk 0:00:04]} 48. Rce1 {[%clk 0:00:07]}  Rxe1 {[%clk 0:00:03]} 49. Rxe1 {[%clk 0:00:08]}  Qf6 {[%clk 0:00:04]} 50. d7 {[%clk 0:00:05]}  Qf2 {[%clk 0:00:03]} 51. d8=Q+ {[%clk 0:00:05]}  Kh7 {[%clk 0:00:04]} 52. Qd3+ {[%clk 0:00:04]}  Kh6 {[%clk 0:00:04]} 53. Q8d6+ {[%clk 0:00:03]}  Bf6 {[%clk 0:00:04]} 54. Rf1 {[%clk 0:00:03]}  Nh3 {[%clk 0:00:01]} 55. Qxf6+ {[%clk 0:00:02]} 1-0


[Site "https://www.chess.com"]

[Event "Titled Tuesday Blitz May 10 Early 2022"]
[White "Bettalli, Francesco"]
[Black "De Silva, L M S T"]
[WhiteFideId "2816453"]
[BlackFideId "9953698"]
[WhiteElo "2216"]
[BlackElo "1631"]
[Result "0-1"]
[Round "07"]
[TimeControl "180+1"]
[Date "2022.05.11"]
[WhiteClock "0:00:52"]
[BlackClock "0:00:56"]

1. d4 {[%clk 0:03:00]}  Nf6 {[%clk 0:02:59]} 2. Nc3 {[%clk 0:02:54]}  d5 {[%clk 0:02:59]} 3. Bf4 {[%clk 0:02:53]}  a6 {[%clk 0:02:59]} 4. e3 {[%clk 0:02:53]}  e6 {[%clk 0:02:59]} 5. a3 {[%clk 0:02:53]}  Bd6 {[%clk 0:02:57]} 6. Nf3 {[%clk 0:02:53]}  O-O {[%clk 0:02:58]} 7. Bd3 {[%clk 0:02:53]}  c5 {[%clk 0:02:58]} 8. dxc5 {[%clk 0:02:50]}  Bxc5 {[%clk 0:02:59]} 9. O-O {[%clk 0:02:50]}  Nc6 {[%clk 0:02:59]} 10. Ne5 {[%clk 0:02:50]}  Bd6 {[%clk 0:02:55]} 11. Nxc6 {[%clk 0:02:41]}  bxc6 {[%clk 0:02:56]} 12. Qf3 {[%clk 0:02:42]}  e5 {[%clk 0:02:54]} 13. Bg5 {[%clk 0:02:41]}  e4 {[%clk 0:02:53]} 14. Bxe4 {[%clk 0:02:42]}  dxe4 {[%clk 0:02:53]} 15. Nxe4 {[%clk 0:02:42]}  Be5 {[%clk 0:02:34]} 16. Rad1 {[%clk 0:02:36]}  Qe7 {[%clk 0:02:32]} 17. Bxf6 {[%clk 0:02:30]}  Bxf6 {[%clk 0:02:32]} 18. Nxf6+ {[%clk 0:02:29]}  Qxf6 {[%clk 0:02:31]} 19. Qxf6 {[%clk 0:02:29]}  gxf6 {[%clk 0:02:32]} 20. Rd6 {[%clk 0:02:29]}  Be6 {[%clk 0:02:29]} 21. Rxc6 {[%clk 0:02:27]}  Rfc8 {[%clk 0:02:29]} 22. Rxc8+ {[%clk 0:02:27]}  Rxc8 {[%clk 0:02:30]} 23. c3 {[%clk 0:02:27]}  Rd8 {[%clk 0:02:30]} 24. b4 {[%clk 0:02:26]}  Rd2 {[%clk 0:02:29]} 25. Rc1 {[%clk 0:02:22]}  Bc4 {[%clk 0:02:28]} 26. a4 {[%clk 0:02:20]}  Ra2 {[%clk 0:02:26]} 27. a5 {[%clk 0:02:20]}  Rd2 {[%clk 0:02:24]} 28. g3 {[%clk 0:02:20]}  Kf8 {[%clk 0:02:23]} 29. Kg2 {[%clk 0:02:20]}  Ke7 {[%clk 0:02:23]} 30. Kf3 {[%clk 0:02:21]}  Ke6 {[%clk 0:02:21]} 31. e4 {[%clk 0:02:21]}  Ke5 {[%clk 0:02:19]} 32. Re1 {[%clk 0:02:17]}  Rc2 {[%clk 0:01:31]} 33. Re3 {[%clk 0:02:13]}  h5 {[%clk 0:01:30]} 34. Kg2 {[%clk 0:02:13]}  Bb5 {[%clk 0:01:21]} 35. Kf3 {[%clk 0:02:12]}  Bf1 {[%clk 0:01:21]} 36. h4 {[%clk 0:02:10]}  Ke6 {[%clk 0:01:18]} 37. g4 {[%clk 0:02:01]}  hxg4+ {[%clk 0:01:17]} 38. Kg3 {[%clk 0:02:00]}  Be2 {[%clk 0:01:14]} 39. h5 {[%clk 0:01:59]}  Bf3 {[%clk 0:01:14]} 40. Rd3 {[%clk 0:01:30]}  Rc1 {[%clk 0:01:08]} 41. Rd8 {[%clk 0:01:21]}  f5 {[%clk 0:00:57]} 42. exf5+ {[%clk 0:01:18]}  Kxf5 {[%clk 0:00:58]} 43. h6 {[%clk 0:00:52]}  Rg1+ {[%clk 0:00:55]} 44. Kh2 {[%clk 0:00:52]}  Rh1+ {[%clk 0:00:56]} 45. Kg3 {[%clk 0:00:52]}  Rh3# {[%clk 0:00:56]} 0-1


[Site "https://www.chess.com"]

[Event "Titled Tuesday Blitz May 10 Early 2022"]
[White "Bommini, Mounika Akshaya"]
[Black "Bach, Ngoc Thuy Duong"]
[WhiteFideId "25019872"]
[BlackFideId "12408956"]
[WhiteElo "1671"]
[BlackElo "1862"]
[Result "0-1"]
[Round "07"]
[TimeControl "180+1"]
[Date "2022.05.11"]
[WhiteClock "0:01:20"]
[BlackClock "0:01:14"]

1. d4 {[%clk 0:02:58]}  d5 {[%clk 0:03:00]} 2. Bf4 {[%clk 0:02:55]}  Nf6 {[%clk 0:03:00]} 3. e3 {[%clk 0:02:53]}  c5 {[%clk 0:03:00]} 4. c3 {[%clk 0:02:54]}  Nc6 {[%clk 0:03:00]} 5. Nd2 {[%clk 0:02:54]}  cxd4 {[%clk 0:02:57]} 6. exd4 {[%clk 0:02:54]}  g6 {[%clk 0:02:47]} 7. h4 {[%clk 0:02:46]}  Bg7 {[%clk 0:02:44]} 8. Be2 {[%clk 0:02:43]}  h6 {[%clk 0:02:37]} 9. h5 {[%clk 0:02:38]}  g5 {[%clk 0:02:35]} 10. Bg3 {[%clk 0:02:38]}  Bf5 {[%clk 0:02:34]} 11. Ngf3 {[%clk 0:02:36]}  O-O {[%clk 0:02:27]} 12. Ne5 {[%clk 0:02:34]}  Rc8 {[%clk 0:02:15]} 13. Qb3 {[%clk 0:02:27]}  Na5 {[%clk 0:02:12]} 14. Qd1 {[%clk 0:02:19]}  a6 {[%clk 0:01:59]} 15. f4 {[%clk 0:02:18]}  Nh7 {[%clk 0:01:49]} 16. fxg5 {[%clk 0:02:11]}  Nxg5 {[%clk 0:01:50]} 17. Ndf3 {[%clk 0:02:09]}  Ne4 {[%clk 0:01:49]} 18. Bf4 {[%clk 0:02:08]}  Qb6 {[%clk 0:01:40]} 19. g4 {[%clk 0:01:55]}  Qxb2 {[%clk 0:01:18]} 20. gxf5 {[%clk 0:01:51]}  Nxc3 {[%clk 0:01:18]} 21. Bc1 {[%clk 0:01:20]}  Qxa1 {[%clk 0:01:14]} 0-1


[Site "https://www.chess.com"]